[Event "*** Titled Tuesday Blitz AM"]
[Site "Chess.com"]
[Date "2020.01.07"]
[Round "4"]
[White "GelmanAlexander"]
[Black "arjwezhrtdrz"]
[Result "0-1"]
[WhiteElo "2477"]
[BlackElo "2291"]
[TimeControl "180+2"]
[EndTime "9:52:04 PST"]
[Termination "arjwezhrtdrz won on time"]

1. e4 {[%clk 0:03:01.9]} 1... d5 {[%clk 0:02:58.9]} 2. exd5 {[%clk 0:03:02.9]}
2... Qxd5 {[%clk 0:02:59.7]} 3. Nc3 {[%clk 0:03:03.9]} 3... Qd8 {[%clk
0:03:00.6]} 4. d4 {[%clk 0:03:00.4]} 4... Nf6 {[%clk 0:03:02.4]} 5. Bc4 {[%clk
0:02:52.6]} 5... Bg4 {[%clk 0:03:00.8]} 6. f3 {[%clk 0:02:50.9]} 6... Bc8 {[%clk
0:03:00]} 7. f4 {[%clk 0:02:03.3]} 7... Nbd7 {[%clk 0:02:50.4]} 8. Nf3 {[%clk
0:02:03.9]} 8... Nb6 {[%clk 0:02:45.4]} 9. Bb3 {[%clk 0:02:01.7]} 9... c6 {[%clk
0:02:43.5]} 10. O-O {[%clk 0:02:00]} 10... e6 {[%clk 0:02:39.8]} 11. f5 {[%clk
0:01:52.6]} 11... exf5 {[%clk 0:02:29.4]} 12. Ne5 {[%clk 0:01:00.5]} 12... Nbd5
{[%clk 0:02:11]} 13. Nxd5 {[%clk 0:00:48.6]} 13... Nxd5 {[%clk 0:02:06.2]} 14.
c4 {[%clk 0:00:34.7]} 14... Nf6 {[%clk 0:02:04.8]} 15. c5 {[%clk 0:00:30.5]}
15... Nd5 {[%clk 0:02:05.3]} 16. g4 {[%clk 0:00:27.3]} 16... f4 {[%clk
0:01:53.8]} 17. Bxf4 {[%clk 0:00:21.7]} 17... Be6 {[%clk 0:01:54.7]} 18. Qf3
{[%clk 0:00:16.8]} 18... Be7 {[%clk 0:01:53]} 19. Bd2 {[%clk 0:00:10.4]} 19...
O-O {[%clk 0:01:52.4]} 20. Rae1 {[%clk 0:00:11.2]} 20... Nf6 {[%clk 0:01:32.2]}
21. Be3 {[%clk 0:00:07.4]} 21... Bxb3 {[%clk 0:01:26.5]} 22. axb3 {[%clk
0:00:09.3]} 22... Qd5 {[%clk 0:01:27.4]} 23. Qf5 {[%clk 0:00:08.9]} 23... Qxb3
{[%clk 0:01:00.1]} 24. g5 {[%clk 0:00:06.8]} 24... Nd5 {[%clk 0:01:00.9]} 25.
Bc1 {[%clk 0:00:05.6]} 25... Nb4 {[%clk 0:00:50.2]} 26. Rf3 {[%clk 0:00:04.8]}
26... Qe6 {[%clk 0:00:47.7]} 27. Qe4 {[%clk 0:00:04.2]} 27... Nd5 {[%clk
0:00:44.5]} 28. Ref1 {[%clk 0:00:04.1]} 28... f6 {[%clk 0:00:33.4]} 29. gxf6
{[%clk 0:00:05.3]} 29... Bxf6 {[%clk 0:00:28.9]} 0-1

[Event "*** Titled Tuesday Blitz AM"]
[Site "Chess.com"]
[Date "2020.01.07"]
[Round "4"]
[White "dianosky"]
[Black "Safar_From_Afar"]
[Result "1-0"]
[WhiteElo "2324"]
[BlackElo "2090"]
[TimeControl "180+2"]
[EndTime "9:52:06 PST"]
[Termination "dianosky won by checkmate"]

1. d4 {[%clk 0:03:01.9]} 1... Nf6 {[%clk 0:03:00.1]} 2. c4 {[%clk 0:03:02.9]}
2... g6 {[%clk 0:03:01.1]} 3. Nc3 {[%clk 0:03:04]} 3... Bg7 {[%clk 0:03:02.1]}
4. e4 {[%clk 0:03:05.1]} 4... d6 {[%clk 0:03:03.3]} 5. f4 {[%clk 0:03:06.1]}
5... O-O {[%clk 0:03:03.7]} 6. Be2 {[%clk 0:03:07.3]} 6... e5 {[%clk 0:03:04.2]}
7. fxe5 {[%clk 0:03:05]} 7... dxe5 {[%clk 0:03:05]} 8. d5 {[%clk 0:03:06.9]}
8... Na6 {[%clk 0:03:01.1]} 9. Be3 {[%clk 0:03:05.5]} 9... c6 {[%clk 0:02:59.5]}
10. a3 {[%clk 0:02:52.4]} 10... cxd5 {[%clk 0:02:55.8]} 11. cxd5 {[%clk
0:02:53.1]} 11... Bd7 {[%clk 0:02:57.1]} 12. b4 {[%clk 0:02:52.9]} 12... Rc8
{[%clk 0:02:57.3]} 13. Rc1 {[%clk 0:02:53.5]} 13... Rxc3 {[%clk 0:02:56.7]} 14.
Rxc3 {[%clk 0:02:51.9]} 14... Nxe4 {[%clk 0:02:58.2]} 15. Rc1 {[%clk 0:02:46.9]}
15... Qh4+ {[%clk 0:02:54.6]} 16. g3 {[%clk 0:02:45.6]} 16... Qe7 {[%clk
0:02:27]} 17. Nf3 {[%clk 0:02:40.4]} 17... f5 {[%clk 0:02:26.1]} 18. Nd2 {[%clk
0:02:25.6]} 18... Nd6 {[%clk 0:02:16.6]} 19. Nc4 {[%clk 0:02:14.1]} 19... f4
{[%clk 0:02:09.5]} 20. Bf2 {[%clk 0:02:13.9]} 20... e4 {[%clk 0:02:07.3]} 21.
gxf4 {[%clk 0:01:59.6]} 21... Rxf4 {[%clk 0:01:23.6]} 22. Bg3 {[%clk 0:02:00]}
22... Bh6 {[%clk 0:01:05.6]} 23. Nxd6 {[%clk 0:01:34.3]} 23... Qxd6 {[%clk
0:01:04.4]} 24. Qd4 {[%clk 0:01:29.6]} 24... Qf6 {[%clk 0:00:40.3]} 25. Qxf6
{[%clk 0:00:53.6]} 25... Rxf6 {[%clk 0:00:40.4]} 26. Rc3 {[%clk 0:00:54.7]}
26... Bg7 {[%clk 0:00:26.7]} 27. b5 {[%clk 0:00:49.1]} 27... Rb6 {[%clk
0:00:11]} 28. Rc2 {[%clk 0:00:27.9]} 28... Bxb5 {[%clk 0:00:10.4]} 29. Rc8+
{[%clk 0:00:28]} 29... Kf7 {[%clk 0:00:10.7]} 30. O-O+ {[%clk 0:00:28.7]} 30...
Ke7 {[%clk 0:00:07.1]} 31. d6+ {[%clk 0:00:15.7]} 31... Kd7 {[%clk 0:00:06.9]}
32. Bg4# {[%clk 0:00:16]} 1-0

[Event "*** Titled Tuesday Blitz AM"]
[Site "Chess.com"]
[Date "2020.01.07"]
[Round "4"]
[White "albano87"]
[Black "lucasmito"]
[Result "0-1"]
[WhiteElo "2057"]
[BlackElo "2439"]
[TimeControl "180+2"]
[EndTime "9:52:17 PST"]
[Termination "lucasmito won on time"]

1. e4 {[%clk 0:02:07.9]} 1... e5 {[%clk 0:02:58.1]} 2. d4 {[%clk 0:02:07.8]}
2... exd4 {[%clk 0:03:00]} 3. Qxd4 {[%clk 0:02:07.7]} 3... Nc6 {[%clk
0:03:01.5]} 4. Qe3 {[%clk 0:02:09.3]} 4... Nf6 {[%clk 0:03:02.8]} 5. Nc3 {[%clk
0:02:11]} 5... Bb4 {[%clk 0:03:04.1]} 6. Bd2 {[%clk 0:02:11.9]} 6... O-O {[%clk
0:03:05.3]} 7. O-O-O {[%clk 0:02:13.5]} 7... Re8 {[%clk 0:03:06.9]} 8. f3 {[%clk
0:02:14.8]} 8... d5 {[%clk 0:03:07.5]} 9. Qf2 {[%clk 0:02:16.5]} 9... dxe4
{[%clk 0:03:06.5]} 10. Bg5 {[%clk 0:02:17]} 10... Bd7 {[%clk 0:02:34.2]} 11. Nd5
{[%clk 0:02:16.8]} 11... Be7 {[%clk 0:02:17.3]} 12. Bxf6 {[%clk 0:02:10.5]}
12... Bxf6 {[%clk 0:02:17.1]} 13. fxe4 {[%clk 0:02:12.1]} 13... Bh4 {[%clk
0:01:57.7]} 14. g3 {[%clk 0:02:09.4]} 14... Bg5+ {[%clk 0:01:58.9]} 15. Kb1
{[%clk 0:02:09.9]} 15... Bg4 {[%clk 0:01:58.5]} 16. Be2 {[%clk 0:02:09.7]} 16...
Bxe2 {[%clk 0:01:56.3]} 17. Nxe2 {[%clk 0:02:10.2]} 17... Rxe4 {[%clk
0:01:52.5]} 18. Nec3 {[%clk 0:02:10.1]} 18... Re8 {[%clk 0:01:19.9]} 19. Nb6
{[%clk 0:02:02.9]} 19... axb6 {[%clk 0:01:20.3]} 20. Rxd8 {[%clk 0:02:03.1]}
20... Raxd8 {[%clk 0:01:22.2]} 21. a3 {[%clk 0:01:55.8]} 21... Be3 {[%clk
0:01:17]} 22. Qf3 {[%clk 0:01:52.4]} 22... Bd4 {[%clk 0:01:13.2]} 23. Nd5 {[%clk
0:01:43.1]} 23... Rd7 {[%clk 0:00:56.1]} 24. Rd1 {[%clk 0:01:34]} 24... Red8
{[%clk 0:00:54]} 25. c4 {[%clk 0:01:24.5]} 25... b5 {[%clk 0:00:13.8]} 26. Rxd4
{[%clk 0:01:23.4]} 26... Nxd4 {[%clk 0:00:12.8]} 27. Qg4 {[%clk 0:01:24.2]}
27... Rd6 {[%clk 0:00:07.4]} 28. Qxd4 {[%clk 0:01:18.2]} 28... bxc4 {[%clk
0:00:08.6]} 29. Qxc4 {[%clk 0:01:19.2]} 29... Rxd5 {[%clk 0:00:09.3]} 30. Qxc7
{[%clk 0:01:15.9]} 30... b5 {[%clk 0:00:10.9]} 0-1

[Event "*** Titled Tuesday Blitz AM"]
[Site "Chess.com"]
[Date "2020.01.07"]
[Round "4"]
[White "zurzan"]
[Black "boo786"]
[Result "0-1"]
[WhiteElo "1963"]
[BlackElo "2422"]
[TimeControl "180+2"]
[EndTime "9:52:18 PST"]
[Termination "boo786 won on time"]

1. f4 {[%clk 0:03:01.9]} 1... d6 {[%clk 0:02:59.1]} 2. Nf3 {[%clk 0:03:01.8]}
2... Nf6 {[%clk 0:02:58.7]} 3. g3 {[%clk 0:03:02.8]} 3... g6 {[%clk 0:02:59.8]}
4. Bg2 {[%clk 0:03:04.7]} 4... Bg7 {[%clk 0:03:00.9]} 5. O-O {[%clk 0:03:06.3]}
5... O-O {[%clk 0:03:01.7]} 6. d3 {[%clk 0:03:06.8]} 6... c5 {[%clk 0:03:00.2]}
7. e4 {[%clk 0:03:07.2]} 7... Nc6 {[%clk 0:03:01]} 8. c3 {[%clk 0:03:07.8]} 8...
Rb8 {[%clk 0:03:01]} 9. a4 {[%clk 0:03:07.2]} 9... a6 {[%clk 0:02:59.4]} 10. Qe1
{[%clk 0:02:59.7]} 10... b5 {[%clk 0:02:58]} 11. axb5 {[%clk 0:03:00.6]} 11...
axb5 {[%clk 0:02:58.6]} 12. h3 {[%clk 0:02:30.7]} 12... b4 {[%clk 0:02:57.9]}
13. g4 {[%clk 0:02:20.5]} 13... Na5 {[%clk 0:02:47.2]} 14. Nbd2 {[%clk
0:02:08.8]} 14... bxc3 {[%clk 0:02:40.9]} 15. bxc3 {[%clk 0:02:09]} 15... Nd7
{[%clk 0:02:42.5]} 16. Nc4 {[%clk 0:01:56.7]} 16... Nxc4 {[%clk 0:02:39.7]} 17.
dxc4 {[%clk 0:01:57]} 17... Nb6 {[%clk 0:02:40.6]} 18. Rb1 {[%clk 0:01:52.2]}
18... Be6 {[%clk 0:02:37.8]} 19. f5 {[%clk 0:01:48.4]} 19... Bxc4 {[%clk
0:02:38.2]} 20. Rf2 {[%clk 0:01:47.9]} 20... Na4 {[%clk 0:02:34.6]} 21. Rxb8
{[%clk 0:01:46.9]} 21... Qxb8 {[%clk 0:02:35]} 22. Bd2 {[%clk 0:01:32.9]} 22...
Nb2 {[%clk 0:02:30.5]} 23. Bf1 {[%clk 0:01:19.2]} 23... Bxf1 {[%clk 0:02:19.5]}
24. Qxf1 {[%clk 0:01:11.5]} 24... Qb3 {[%clk 0:02:19.4]} 25. Qb1 {[%clk
0:00:24]} 25... Qd1+ {[%clk 0:02:14.6]} 26. Rf1 {[%clk 0:00:22.2]} 26... Qxb1
{[%clk 0:02:14.3]} 27. Rxb1 {[%clk 0:00:24.1]} 27... Nc4 {[%clk 0:02:14.9]} 28.
Be1 {[%clk 0:00:23.7]} 28... Ra8 {[%clk 0:02:09.4]} 29. h4 {[%clk 0:00:22.9]}
29... Ne3 {[%clk 0:01:55.4]} 30. g5 {[%clk 0:00:21.8]} 30... gxf5 {[%clk
0:01:55.4]} 31. exf5 {[%clk 0:00:22.6]} 31... Nxf5 {[%clk 0:01:55.9]} 32. h5
{[%clk 0:00:19.9]} 32... e6 {[%clk 0:01:52.8]} 33. g6 {[%clk 0:00:18.4]} 33...
hxg6 {[%clk 0:01:52.8]} 34. hxg6 {[%clk 0:00:20.3]} 34... fxg6 {[%clk 0:01:46]}
35. Kg2 {[%clk 0:00:16.2]} 35... d5 {[%clk 0:01:41.5]} 36. Kh3 {[%clk 0:00:16]}
36... Bf6 {[%clk 0:01:35.6]} 37. Kg4 {[%clk 0:00:15.7]} 37... Ra7 {[%clk
0:01:32.1]} 38. Bd2 {[%clk 0:00:13.8]} 38... Kf7 {[%clk 0:01:30.8]} 39. Rh1
{[%clk 0:00:12.6]} 39... Kg7 {[%clk 0:01:28.6]} 40. Ne1 {[%clk 0:00:07.1]} 40...
Ra4+ {[%clk 0:01:28.7]} 41. Kf3 {[%clk 0:00:08]} 41... d4 {[%clk 0:01:26.2]} 42.
cxd4 {[%clk 0:00:07.7]} 42... Nxd4+ {[%clk 0:01:25.4]} 43. Ke3 {[%clk
0:00:09.2]} 43... Nf5+ {[%clk 0:01:24.9]} 44. Ke2 {[%clk 0:00:09.9]} 44... c4
{[%clk 0:01:25.1]} 45. Rg1 {[%clk 0:00:07.6]} 45... c3 {[%clk 0:01:24.2]} 46.
Be3 {[%clk 0:00:06.8]} 46... Re4 {[%clk 0:01:23.6]} 47. Nc2 {[%clk 0:00:06.8]}
47... Nxe3 {[%clk 0:01:24]} 48. Nxe3 {[%clk 0:00:07.3]} 48... Bd4 {[%clk
0:01:24.1]} 49. Kd3 {[%clk 0:00:04.9]} 49... Bxe3 {[%clk 0:01:21.8]} 0-1

[Event "*** Titled Tuesday Blitz AM"]
[Site "Chess.com"]
[Date "2020.01.07"]
[Round "4"]
[White "farzadbfd"]
[Black "Kriari"]
[Result "0-1"]
[WhiteElo "2606"]
[BlackElo "2916"]
[TimeControl "180+2"]
[EndTime "9:52:19 PST"]
[Termination "Kriari won by resignation"]

1. Nf3 {[%clk 0:03:01.9]} 1... Nf6 {[%clk 0:02:58.8]} 2. b3 {[%clk 0:03:02.6]}
2... g6 {[%clk 0:03:00.7]} 3. Bb2 {[%clk 0:03:03.7]} 3... Bg7 {[%clk 0:03:02.6]}
4. g3 {[%clk 0:03:04.9]} 4... O-O {[%clk 0:03:04.1]} 5. Bg2 {[%clk 0:03:06.3]}
5... d5 {[%clk 0:03:06]} 6. c4 {[%clk 0:03:07.3]} 6... dxc4 {[%clk 0:03:06]} 7.
bxc4 {[%clk 0:03:08.2]} 7... c5 {[%clk 0:03:07.6]} 8. d3 {[%clk 0:03:07.5]} 8...
Nc6 {[%clk 0:03:09]} 9. Nbd2 {[%clk 0:03:08.6]} 9... Qc7 {[%clk 0:03:09.7]} 10.
Nb3 {[%clk 0:02:58.3]} 10... b6 {[%clk 0:03:10.6]} 11. O-O {[%clk 0:02:57.6]}
11... Bb7 {[%clk 0:03:10.4]} 12. a3 {[%clk 0:02:28.9]} 12... Rad8 {[%clk
0:03:10.9]} 13. Qc2 {[%clk 0:02:30]} 13... e5 {[%clk 0:03:11.9]} 14. Nxe5 {[%clk
0:02:11]} 14... Rfe8 {[%clk 0:03:01.2]} 15. Nxc6 {[%clk 0:02:07.1]} 15... Bxc6
{[%clk 0:03:03.1]} 16. Bxc6 {[%clk 0:01:55.8]} 16... Qxc6 {[%clk 0:03:05]} 17.
Rfe1 {[%clk 0:01:54.1]} 17... h5 {[%clk 0:03:06.1]} 18. h4 {[%clk 0:01:53.5]}
18... Ng4 {[%clk 0:03:02.8]} 19. Bxg7 {[%clk 0:01:53.6]} 19... Kxg7 {[%clk
0:03:04.7]} 20. Qc3+ {[%clk 0:01:48.9]} 20... Kg8 {[%clk 0:03:05.5]} 21. Nd2
{[%clk 0:01:44.6]} 21... Ne5 {[%clk 0:02:58.1]} 22. Ne4 {[%clk 0:01:38.5]} 22...
f5 {[%clk 0:02:57.5]} 23. Ng5 {[%clk 0:01:34.6]} 23... Rd4 {[%clk 0:02:55.3]}
24. Rad1 {[%clk 0:01:22.4]} 24... Qf6 {[%clk 0:02:46.8]} 25. Kg2 {[%clk
0:01:07]} 25... f4 {[%clk 0:02:35]} 26. Ne4 {[%clk 0:01:01.1]} 26... f3+ {[%clk
0:02:29.2]} 27. Kg1 {[%clk 0:00:26.4]} 27... Rxe4 {[%clk 0:02:15.1]} 28. dxe4
{[%clk 0:00:20.5]} 28... fxe2 {[%clk 0:02:16.4]} 29. Rd3 {[%clk 0:00:19.4]}
29... Qe6 {[%clk 0:01:36.9]} 30. Rxe2 {[%clk 0:00:16.1]} 30... Qh3 {[%clk
0:01:29]} 31. f4 {[%clk 0:00:09.2]} 31... Nxd3 {[%clk 0:01:15.3]} 32. Qxd3
{[%clk 0:00:11.1]} 32... Re7 {[%clk 0:01:17.2]} 33. e5 {[%clk 0:00:10.6]} 33...
Rd7 {[%clk 0:01:18.3]} 34. Qf3 {[%clk 0:00:05]} 34... Rd1+ {[%clk 0:01:18]} 35.
Kf2 {[%clk 0:00:06.2]} 35... Rf1+ {[%clk 0:01:19]} 36. Ke3 {[%clk 0:00:07.2]}
36... Rxf3+ {[%clk 0:01:20.9]} 37. Kxf3 {[%clk 0:00:09.1]} 37... Qf1+ {[%clk
0:01:19.2]} 38. Ke3 {[%clk 0:00:10.2]} 38... Qc1+ {[%clk 0:01:20.2]} 39. Kf3
{[%clk 0:00:10.3]} 39... Qxa3+ {[%clk 0:01:18.6]} 40. Re3 {[%clk 0:00:11.2]}
40... Qa1 {[%clk 0:01:18.5]} 41. e6 {[%clk 0:00:12.6]} 41... Qf1+ {[%clk
0:01:16.4]} 42. Ke4 {[%clk 0:00:13.1]} 42... Qxc4+ {[%clk 0:01:18.3]} 43. Kf3
{[%clk 0:00:14.6]} 43... Kf8 {[%clk 0:01:17.6]} 44. e7+ {[%clk 0:00:15.7]} 44...
Ke8 {[%clk 0:01:18.9]} 45. Re5 {[%clk 0:00:17.6]} 45... a5 {[%clk 0:01:18.6]}
46. g4 {[%clk 0:00:19.1]} 46... Qd3+ {[%clk 0:01:17.8]} 47. Re3 {[%clk
0:00:20.3]} 47... hxg4+ {[%clk 0:01:17.1]} 48. Kf2 {[%clk 0:00:19.9]} 48... Qd2+
{[%clk 0:01:18.3]} 49. Re2 {[%clk 0:00:20.5]} 49... Qxf4+ {[%clk 0:01:19.7]} 0-1

[Event "*** Titled Tuesday Blitz AM"]
[Site "Chess.com"]
[Date "2020.01.07"]
[Round "4"]
[White "AwareIdea"]
[Black "goldenspine"]
[Result "1-0"]
[WhiteElo "2520"]
[BlackElo "2326"]
[TimeControl "180+2"]
[EndTime "9:52:22 PST"]
[Termination "AwareIdea won by resignation"]

1. d4 {[%clk 0:03:01.9]} 1... Nf6 {[%clk 0:03:00.5]} 2. c4 {[%clk 0:03:01.7]}
2... g6 {[%clk 0:03:00.2]} 3. Nc3 {[%clk 0:03:02.4]} 3... d5 {[%clk 0:03:01.4]}
4. Bg5 {[%clk 0:03:03.9]} 4... Bg7 {[%clk 0:02:55.8]} 5. Bxf6 {[%clk 0:03:04]}
5... Bxf6 {[%clk 0:02:57.7]} 6. cxd5 {[%clk 0:03:05.9]} 6... c6 {[%clk
0:02:40.4]} 7. dxc6 {[%clk 0:03:05.8]} 7... Nxc6 {[%clk 0:02:42.3]} 8. e3 {[%clk
0:03:05.9]} 8... O-O {[%clk 0:02:43.5]} 9. Nf3 {[%clk 0:03:06.4]} 9... Bg4
{[%clk 0:02:41.5]} 10. Be2 {[%clk 0:03:07.3]} 10... Qb6 {[%clk 0:02:38.6]} 11.
O-O {[%clk 0:02:56.5]} 11... Qxb2 {[%clk 0:02:30.2]} 12. Na4 {[%clk 0:02:56.7]}
12... Qa3 {[%clk 0:02:27.6]} 13. Rb1 {[%clk 0:02:57.4]} 13... b6 {[%clk
0:02:25.6]} 14. Qb3 {[%clk 0:02:38.4]} 14... Qxb3 {[%clk 0:02:08.6]} 15. axb3
{[%clk 0:02:40.3]} 15... Rfd8 {[%clk 0:02:06.5]} 16. h3 {[%clk 0:02:39.8]} 16...
Bf5 {[%clk 0:02:05.3]} 17. Rbc1 {[%clk 0:02:39.1]} 17... Be4 {[%clk 0:01:46.2]}
18. Nd2 {[%clk 0:02:37]} 18... Bd5 {[%clk 0:01:47.2]} 19. Bf3 {[%clk 0:02:29.2]}
19... Bxf3 {[%clk 0:01:12]} 20. Nxf3 {[%clk 0:02:31.1]} 20... Na5 {[%clk
0:01:09.7]} 21. b4 {[%clk 0:02:30.3]} 21... Nb7 {[%clk 0:00:51]} 22. Rc7 {[%clk
0:02:28.3]} 22... Nd6 {[%clk 0:00:52.3]} 23. Rfc1 {[%clk 0:02:25.4]} 23... Nb5
{[%clk 0:00:53.5]} 24. R7c6 {[%clk 0:02:22.6]} 24... Kf8 {[%clk 0:00:48.5]} 25.
Nc3 {[%clk 0:02:21.7]} 25... Nxc3 {[%clk 0:00:41]} 26. R1xc3 {[%clk 0:02:23.6]}
26... Rd7 {[%clk 0:00:42.7]} 27. Rc8+ {[%clk 0:02:22]} 27... Rxc8 {[%clk
0:00:43]} 28. Rxc8+ {[%clk 0:02:23.9]} 28... Kg7 {[%clk 0:00:44.6]} 29. b5
{[%clk 0:02:25]} 29... Rd5 {[%clk 0:00:40.8]} 30. Rc7 {[%clk 0:02:17.4]} 30...
Rxb5 {[%clk 0:00:40.5]} 31. Rxa7 {[%clk 0:02:18.6]} 31... e5 {[%clk 0:00:41.6]}
32. dxe5 {[%clk 0:02:05.1]} 32... Bxe5 {[%clk 0:00:43.5]} 33. g4 {[%clk
0:02:02.9]} 33... Rb1+ {[%clk 0:00:41.6]} 34. Kg2 {[%clk 0:02:03.8]} 34... Bc3
{[%clk 0:00:42]} 35. Ng5 {[%clk 0:02:02.5]} 35... b5 {[%clk 0:00:30.1]} 36.
Rxf7+ {[%clk 0:02:01.3]} 36... Kg8 {[%clk 0:00:31.1]} 37. Rc7 {[%clk 0:02:01.6]}
37... b4 {[%clk 0:00:31.7]} 38. Ne4 {[%clk 0:02:00.1]} 38... Be5 {[%clk
0:00:31]} 39. Rb7 {[%clk 0:01:57.3]} 39... b3 {[%clk 0:00:31.5]} 40. f4 {[%clk
0:01:54.7]} 40... Bg7 {[%clk 0:00:29.5]} 41. f5 {[%clk 0:01:52]} 41... gxf5
{[%clk 0:00:29.9]} 42. gxf5 {[%clk 0:01:53.9]} 42... Be5 {[%clk 0:00:20.6]} 43.
f6 {[%clk 0:01:41.4]} 43... b2 {[%clk 0:00:19.5]} 44. f7+ {[%clk 0:01:42.5]}
44... Kg7 {[%clk 0:00:10.8]} 45. Ng5 {[%clk 0:01:43.3]} 45... Bd6 {[%clk
0:00:11.6]} 46. Nxh7 {[%clk 0:01:35.3]} 46... Kg6 {[%clk 0:00:07.4]} 47. f8=Q
{[%clk 0:01:28.4]} 47... Bxf8 {[%clk 0:00:08.1]} 48. Nxf8+ {[%clk 0:01:30.3]}
48... Kf5 {[%clk 0:00:09.5]} 49. h4 {[%clk 0:01:26.8]} 49... Ke4 {[%clk
0:00:10.1]} 50. h5 {[%clk 0:01:28]} 50... Kd3 {[%clk 0:00:11]} 51. h6 {[%clk
0:01:28.4]} 51... Kc2 {[%clk 0:00:12.3]} 52. h7 {[%clk 0:01:29.2]} 52... Ra1
{[%clk 0:00:10.9]} 1-0

[Event "*** Titled Tuesday Blitz AM"]
[Site "Chess.com"]
[Date "2020.01.07"]
[Round "4"]
[White "MattyDPerrine"]
[Black "ChessQueen"]
[Result "1-0"]
[WhiteElo "2363"]
[BlackElo "2659"]
[TimeControl "180+2"]
[EndTime "9:52:25 PST"]
[Termination "MattyDPerrine won by checkmate"]

1. Nf3 {[%clk 0:02:58.3]} 1... Nf6 {[%clk 0:02:59.3]} 2. g3 {[%clk 0:02:57.4]}
2... b6 {[%clk 0:02:59.5]} 3. Bg2 {[%clk 0:02:58.2]} 3... Bb7 {[%clk 0:03:00.9]}
4. O-O {[%clk 0:02:58.5]} 4... e6 {[%clk 0:03:02.4]} 5. c4 {[%clk 0:02:59.8]}
5... Be7 {[%clk 0:03:03.4]} 6. Nc3 {[%clk 0:03:00.3]} 6... O-O {[%clk 0:03:04]}
7. Re1 {[%clk 0:02:57.9]} 7... d5 {[%clk 0:03:04.7]} 8. Ne5 {[%clk 0:02:46.1]}
8... c5 {[%clk 0:02:49.4]} 9. d4 {[%clk 0:02:13.4]} 9... Nbd7 {[%clk 0:02:19.3]}
10. cxd5 {[%clk 0:01:32.4]} 10... exd5 {[%clk 0:02:02.5]} 11. Bg5 {[%clk
0:00:54.9]} 11... cxd4 {[%clk 0:01:54.8]} 12. Nxd7 {[%clk 0:00:49.6]} 12... dxc3
{[%clk 0:01:31]} 13. Nxf8 {[%clk 0:00:39.5]} 13... cxb2 {[%clk 0:01:27.3]} 14.
Rb1 {[%clk 0:00:38.4]} 14... h6 {[%clk 0:01:15.4]} 15. Be3 {[%clk 0:00:22.7]}
15... Qxf8 {[%clk 0:01:06.9]} 16. Rxb2 {[%clk 0:00:21.6]} 16... Bc5 {[%clk
0:00:57.6]} 17. Bd4 {[%clk 0:00:21]} 17... Ne4 {[%clk 0:00:52.9]} 18. Qd3 {[%clk
0:00:21.2]} 18... Re8 {[%clk 0:00:51.1]} 19. Rc1 {[%clk 0:00:22]} 19... Qe7
{[%clk 0:00:48.6]} 20. Bxc5 {[%clk 0:00:16.9]} 20... Nxc5 {[%clk 0:00:44.3]} 21.
Qa3 {[%clk 0:00:14.5]} 21... Bc6 {[%clk 0:00:33.6]} 22. Rd2 {[%clk 0:00:13.6]}
22... Qg5 {[%clk 0:00:32]} 23. e3 {[%clk 0:00:12.2]} 23... Re7 {[%clk
0:00:32.2]} 24. Rxc5 {[%clk 0:00:12.6]} 24... bxc5 {[%clk 0:00:33.1]} 25. Qxc5
{[%clk 0:00:14.5]} 25... Qf6 {[%clk 0:00:29.5]} 26. Bxd5 {[%clk 0:00:09.7]}
26... Bxd5 {[%clk 0:00:29.7]} 27. Qxd5 {[%clk 0:00:11.6]} 27... Re8 {[%clk
0:00:27.7]} 28. Kg2 {[%clk 0:00:10.4]} 28... Qc3 {[%clk 0:00:23.7]} 29. Rd4
{[%clk 0:00:11.3]} 29... Re6 {[%clk 0:00:21.8]} 30. Rf4 {[%clk 0:00:11.6]} 30...
Qc7 {[%clk 0:00:21.6]} 31. Qf5 {[%clk 0:00:11.8]} 31... Qb7+ {[%clk 0:00:22.3]}
32. Kg1 {[%clk 0:00:11.5]} 32... Rd6 {[%clk 0:00:22]} 33. Rd4 {[%clk 0:00:11.2]}
33... Rg6 {[%clk 0:00:14.2]} 34. Rd8+ {[%clk 0:00:10.4]} 34... Kh7 {[%clk
0:00:15.7]} 35. h4 {[%clk 0:00:11.9]} 35... Qb6 {[%clk 0:00:13.2]} 36. Qc8
{[%clk 0:00:09]} 36... Qb1+ {[%clk 0:00:12.3]} 37. Kh2 {[%clk 0:00:09.3]} 37...
Rf6 {[%clk 0:00:13.6]} 38. Rh8+ {[%clk 0:00:09.2]} 38... Kg6 {[%clk 0:00:14.9]}
39. Qg4# {[%clk 0:00:10.7]} 1-0